[Event "94th FRA-ch Open C 2019"]
[Site "Chartres"]
[Date "2019.08.20"]
[Round "4.2"]
[White "Brun, Pierre"]
[Black "Cregut, Marian"]
[Result "1-0"]
[ECO "D02"]
[WhiteElo "1648"]
[BlackElo "1717"]
[Annotator "NA"]
[PlyCount "123"]
[EventDate "2019.08.17"]
[EventType "swiss"]
[EventCountry "FRA"]
[SourceTitle "playchess.com"]
[Source "ChessBase"]
[SourceQuality "1"]
[TimeControl "40/5400+30:1800+30"]

1. d4 {[%emt 0:00:00]} d5 {[%emt 0:00:00]} 2. Bf4 {[%emt 0:00:00]} Nf6 {[%emt 0:00:40]} 3. Nf3 {[%emt 0:00:00]} c5 {[%emt 0:00:40]} 4. e3 {[%emt 0:00:05]} Nc6 {[%emt 0:00:55]} 5. Nc3 {[%emt 0:00:44]} c4 {[%emt 0:05:01]} 6. h3 {[%emt 0:04:56]} Bf5 {[%emt 0:03:55]} 7. g4 {[%emt 0:09:34]} Bg6 {[%emt 0:11:51]} 8. Ne5 {[%emt 0:01:30]} Ne4 {[%emt 0:09:56]} 9. Nxg6 {[%emt 0:01:38]} Nxc3 {[%emt 0:00:59]} 10. bxc3 {[%emt 0:00:32]} hxg6 {[%emt 0:00:37]} 11. Qb1 {[%emt 0:06:22]} Qd7 {[%emt 0:04:01]} 12. Bg2 {[%emt 0:04:42]} e6 {[%emt 0:03:50]} 13. a4 {[%emt 0:08:49]} Be7 {[%emt 0:02:54]} 14. a5 {[%emt 0:03:14]} Bd8 {[%emt 0:01:51]} 15. a6 {[%emt 0:00:30]} b6 {[%emt 0:00:27]} 16. e4 {[%emt 0:03:58]} Ne7 {[%emt 0:03:38]} 17. Bd2 {[%emt 0:19:16]} Rb8 {[%emt 0:07:15]} 18. e5 {[%emt 0:01:49]} b5 {[%emt 0:11:22]} 19. Bc1 {[%emt 0:02:32]} Qc6 {[%emt 0:01:46]} 20. Ba3 {[%emt 0:01:26]} Nc8 {[%emt 0:01:58]} 21. O-O {[%emt 0:00:45]} Rb6 {[%emt 0:01:43]} 22. Bc5 {[%emt 0:00:11]} Rb8 {[%emt 0:02:33]} 23. f4 {[%emt 0:01:11]} Be7 {[%emt 0:00:35]} 24. Bb4 {[%emt 0:00:40]} Rb6 {[%emt 0:02:17]} 25. Bxe7 {[%emt 0:01:04]} Nxe7 {[%emt 0:00:28]} 26. Ra5 {[%emt 0:01:18]} Kd7 {[%emt 0:00:40]} 27. Qb4 {[%emt 0:02:19]} Rhb8 {[%emt 0:01:48]} 28. Rfa1 {[%emt 0:00:30]} Ke8 {[%emt 0:01:22]} 29. Qb1 {[%emt 0:01:55]} Qc8 {[%emt 0:01:02]} 30. Qe1 {[%emt 0:01:11]} Nc6 {[%emt 0:01:04]} 31. R5a2 {[%emt 0:00:20]} b4 {[%emt 0:01:19]} 32. Qh4 {[%emt 0:00:22]} bxc3 {[%emt 0:01:36]} 33. Qh8+ {[%emt 0:00:18]} Kd7 {[%emt 0:00:24]} 34. Qxg7 {[%emt 0:00:18]} Qf8 {[%emt 0:00:53]} 35. Qf6 {[%emt 0:00:04]} Qe7 {[%emt 0:00:36]} 36. f5 {[%emt 0:01:53]} Qxf6 {[%emt 0:00:40]} 37. exf6 {[%emt 0:00:05]} gxf5 {[%emt 0:02:15]} 38. gxf5 {[%emt 0:00:06]} Rb1+ {[%emt 0:01:40]} 39. Kf2 {[%emt 0:00:38]} Rxa1 {[%emt 0:00:18]} 40. Rxa1 {[%emt 0:00:08]} Rb2 {[%emt 0:00:47]} 41. fxe6+ {[%emt 0:30:33]} fxe6 {[%emt 0:30:46]} 42. Ke3 {[%emt 0:00:16]} Rxc2 {[%emt 0:00:54]} 43. Rf1 {[%emt 0:00:54]} Ke8 {[%emt 0:01:23]} 44. Bf3 {[%emt 0:00:40]} Nd8 {[%emt 0:04:57]} 45. Bh5+ {[%emt 0:01:56]} Nf7 {[%emt 0:02:39]} 46. Bg4 {[%emt 0:03:12]} Kd7 {[%emt 0:04:02]} 47. Bh5 {[%emt 0:00:08]} Ke8 {[%emt 0:00:22]} 48. Rg1 {[%emt 0:02:45]} Kf8 {[%emt 0:00:00]} 49. Rg7 {[%emt 0:00:00]} Rh2 {[%emt 0:00:00]} 50. Rxf7+ {[%emt 0:00:00]} Kg8 {[%emt 0:02:21]} 51. Rg7+ {[%emt 0:18:13]} Kh8 {[%emt 0:00:00]} 52. Rg1 {[%emt 0:00:00]} Rxh3+ {[%emt 0:00:00]} 53. Ke2 {[%emt 0:00:00]} Rxh5 {[%emt 0:00:00]} 54. f7 {[%emt 0:00:00]} Rh2+ {[%emt 0:00:00]} 55. Kd1 {[%emt 0:00:00]} Rf2 {[%emt 0:00:00]} 56. Rg8+ {[%emt 0:00:00]} Kh7 {[%emt 0:00:00]} 57. f8=Q {[%emt 0:00:00]} Rxf8 {[%emt 0:00:00]} 58. Rxf8 {[%emt 0:00:00]} e5 {[%emt 0:00:00]} 59. dxe5 {[%emt 0:00:00]} d4 {[%emt 0:00:00]} 60. Rc8 {[%emt 0:00:00]} d3 {[%emt 0:00:00]} 61. Rxc4 {[%emt 0:00:00]} c2+ {[%emt 0:00:00]} 62. Kd2 {[%emt 0:00:00]} 1-0

[Event "94th FRA-ch Open C 2019"]
[Site "Chartres"]
[Date "2019.08.20"]
[Round "4.3"]
[White "Sithisak, Remi"]
[Black "Arendo, Marc"]
[Result "1-0"]
[ECO "E81"]
[WhiteElo "1635"]
[BlackElo "1694"]
[Annotator "NA"]
[PlyCount "57"]
[EventDate "2019.08.17"]
[EventType "swiss"]
[EventCountry "FRA"]
[SourceTitle "playchess.com"]
[Source "ChessBase"]
[SourceQuality "1"]
[TimeControl "40/5400+30:1800+30"]

1. d4 {[%emt 0:00:00]} d6 {[%emt 0:00:00]} 2. c4 {[%emt 0:00:24]} Nf6 {[%emt 0:00:02]} 3. Nc3 {[%emt 0:01:11]} g6 {[%emt 0:00:40]} 4. e4 {[%emt 0:00:29]} Bg7 {[%emt 0:00:34]} 5. f3 {[%emt 0:01:43]} O-O {[%emt 0:00:22]} 6. Bg5 {[%emt 0:00:28]} Nc6 {[%emt 0:00:34]} 7. Nge2 {[%emt 0:04:37]} e5 {[%emt 0:00:30]} 8. d5 {[%emt 0:00:41]} Ne7 {[%emt 0:00:13]} 9. Qd2 {[%emt 0:01:03]} Nd7 {[%emt 0:06:48]} 10. h4 {[%emt 0:04:41]} f5 {[%emt 0:00:10]} 11. h5 {[%emt 0:01:45]} Qe8 {[%emt 0:01:19]} 12. hxg6 {[%emt 0:01:58]} Nxg6 {[%emt 0:00:29]} 13. exf5 {[%emt 0:05:03]} Rxf5 {[%emt 0:00:56]} 14. Ng3 {[%emt 0:00:22]} Rf7 {[%emt 0:00:33]} 15. Bd3 {[%emt 0:01:49]} Nc5 {[%emt 0:00:00]} 16. O-O-O {[%emt 0:04:37]} Nxd3+ {[%emt 0:08:26]} 17. Qxd3 {[%emt 0:00:22]} Qf8 {[%emt 0:00:07]} 18. Rh5 {[%emt 0:07:30]} Bf5 {[%emt 0:00:25]} 19. Nxf5 {[%emt 0:00:14]} Rxf5 {[%emt 0:00:04]} 20. Rdh1 {[%emt 0:01:27]} Rxg5 {[%emt 0:01:57]} 21. Rxg5 {[%emt 0:01:46]} Bh6 {[%emt 0:00:08]} 22. Rxh6 {[%emt 0:08:16]} Qxh6 {[%emt 0:00:07]} 23. Qf5 {[%emt 0:01:04]} Rf8 {[%emt 0:03:56]} 24. Qe6+ {[%emt 0:00:55]} Kh8 {[%emt 0:00:48]} 25. Ne4 {[%emt 0:00:35]} Rf4 {[%emt 0:06:25]} 26. Kc2 {[%emt 0:01:54]} Kg7 {[%emt 0:06:45]} 27. Qc8 {[%emt 0:05:25]} Rxe4 {[%emt 0:13:44]} 28. Qxc7+ {[%emt 0:00:48]} Kf6 {[%emt 0:00:05]} 29. Qd8+ {[%emt 0:00:18]} 1-0

[Event "94th FRA-ch Open C 2019"]
[Site "Chartres"]
[Date "2019.08.20"]
[Round "4.4"]
[White "Deswarte, Come"]
[Black "Bele, Charles"]
[Result "1-0"]
[ECO "C11"]
[WhiteElo "1628"]
[BlackElo "1678"]
[Annotator "NA"]
[PlyCount "97"]
[EventDate "2019.08.17"]
[EventType "swiss"]
[EventCountry "FRA"]
[SourceTitle "playchess.com"]
[Source "ChessBase"]
[SourceQuality "1"]
[TimeControl "40/5400+30:1800+30"]

1. e4 {[%emt 0:00:00]} e6 {[%emt 0:00:00]} 2. d4 {[%emt 0:00:10]} d5 {[%emt 0:00:00]} 3. Nc3 {[%emt 0:00:17]} Nf6 {[%emt 0:00:30]} 4. e5 {[%emt 0:00:07]} Nfd7 {[%emt 0:00:08]} 5. Nce2 {[%emt 0:00:10]} c5 {[%emt 0:00:53]} 6. c3 {[%emt 0:00:27]} Nc6 {[%emt 0:00:15]} 7. f4 {[%emt 0:00:07]} Be7 {[%emt 0:21:47]} 8. g3 {[%emt 0:01:05]} cxd4 {[%emt 0:04:08]} 9. cxd4 {[%emt 0:00:07]} O-O {[%emt 0:08:40]} 10. Bh3 {[%emt 0:01:18]} Nb6 {[%emt 0:02:47]} 11. Nf3 {[%emt 0:01:36]} Bd7 {[%emt 0:10:22]} 12. O-O {[%emt 0:01:47]} Rc8 {[%emt 0:00:17]} 13. Bd2 {[%emt 0:10:47]} Nc4 {[%emt 0:02:49]} 14. b3 {[%emt 0:00:56]} Nxd2 {[%emt 0:04:47]} 15. Qxd2 {[%emt 0:02:26]} Qb6 {[%emt 0:04:14]} 16. Kh1 {[%emt 0:06:48]} Nb4 {[%emt 0:04:44]} 17. Nc3 {[%emt 0:08:54]} Rc7 {[%emt 0:02:14]} 18. f5 {[%emt 0:07:15]} Rfc8 {[%emt 0:20:55]} 19. Rac1 {[%emt 0:02:05]} Bb5 {[%emt 0:08:30]} 20. Nxb5 {[%emt 0:02:06]} Qxb5 {[%emt 0:00:10]} 21. fxe6 {[%emt 0:01:08]} Rxc1 {[%emt 0:01:26]} 22. Rxc1 {[%emt 0:00:13]} Rc6 {[%emt 0:00:44]} 23. exf7+ {[%emt 0:01:13]} Kxf7 {[%emt 0:00:10]} 24. e6+ {[%emt 0:02:15]} Kg8 {[%emt 0:00:44]} 25. Qf4 {[%emt 0:01:14]} Rxc1+ 26. Qxc1 {[%emt 0:00:01]} Kf8 {[%emt 0:01:02]} 27. Ne5 {[%emt 0:48:58]} Qe8 {[%emt 0:00:42]} 28. Bg2 {[%emt 0:00:00]} Nc6 {[%emt 0:00:23]} 29. Qf4+ {[%emt 0:00:00]} Bf6 {[%emt 0:00:20]} 30. Nd7+ {[%emt 0:00:00]} Ke7 {[%emt 0:00:35]} 31. Nxf6 {[%emt 0:00:00]} gxf6 {[%emt 0:00:07]} 32. Bxd5 {[%emt 0:00:00]} Qd8 {[%emt 0:00:37]} 33. Qe4 {[%emt 0:00:00]} f5 {[%emt 0:00:45]} 34. Qh4+ {[%emt 0:00:00]} Ke8 {[%emt 0:00:34]} 35. Bxc6+ {[%emt 0:00:00]} bxc6 {[%emt 0:00:11]} 36. Qxd8+ {[%emt 0:00:00]} Kxd8 {[%emt 0:00:11]} 37. Kg2 {[%emt 0:00:00]} Ke7 {[%emt 0:00:13]} 38. Kf3 {[%emt 0:00:00]} Kxe6 {[%emt 0:00:08]} 39. Ke3 {[%emt 0:00:00]} a5 {[%emt 0:01:22]} 40. a3 {[%emt 0:00:00]} h6 {[%emt 0:00:28]} 41. h3 {[%emt 0:00:00]} Kd5 {[%emt 0:02:37]} 42. Kd3 {[%emt 0:00:00]} h5 {[%emt 0:02:43]} 43. h4 {[%emt 0:00:00]} c5 {[%emt 0:00:38]} 44. dxc5 {[%emt 0:00:00]} Kxc5 {[%emt 0:00:04]} 45. b4+ {[%emt 0:00:00]} axb4 {[%emt 0:00:13]} 46. axb4+ {[%emt 0:00:00]} Kxb4 {[%emt 0:00:04]} 47. Kd4 {[%emt 0:00:00]} Kb5 {[%emt 0:02:57]} 48. Ke5 {[%emt 0:00:00]} Kc5 {[%emt 0:00:06]} 49. Kxf5 {[%emt 0:00:00]} 1-0

[Event "94th FRA-ch Open C 2019"]
[Site "Chartres"]
[Date "2019.08.20"]
[Round "4.5"]
[White "Schmitt, Nicolas"]
[Black "Noyer, Bastien"]
[Result "0-1"]
[ECO "A64"]
[WhiteElo "1665"]
[BlackElo "1618"]
[Annotator "NA"]
[PlyCount "90"]
[EventDate "2019.08.17"]
[EventType "swiss"]
[EventCountry "FRA"]
[SourceTitle "playchess.com"]
[Source "ChessBase"]
[SourceQuality "1"]
[TimeControl "40/5400+30:1800+30"]

1. d4 {[%emt 0:00:00]} Nf6 {[%emt 0:00:00]} 2. c4 {[%emt 0:00:00]} c5 {[%emt 0:00:00]} 3. d5 {[%emt 0:00:00]} e6 {[%emt 0:00:00]} 4. Nc3 {[%emt 0:00:00]} exd5 {[%emt 0:00:00]} 5. cxd5 {[%emt 0:00:00]} d6 {[%emt 0:00:00]} 6. g3 {[%emt 0:00:22]} g6 {[%emt 0:00:06]} 7. Bg2 {[%emt 0:00:04]} Bg7 {[%emt 0:00:14]} 8. Nf3 {[%emt 0:01:51]} O-O {[%emt 0:00:59]} 9. O-O {[%emt 0:00:11]} a6 {[%emt 0:02:11]} 10. a4 {[%emt 0:00:42]} Re8 {[%emt 0:00:51]} 11. Nd2 {[%emt 0:03:49]} Nbd7 {[%emt 0:00:59]} 12. Nc4 {[%emt 0:17:53]} Nb6 {[%emt 0:04:51]} 13. Qb3 {[%emt 0:01:24]} Nxc4 {[%emt 0:03:13]} 14. Qxc4 {[%emt 0:00:04]} Rb8 {[%emt 0:01:18]} 15. b4 {[%emt 0:08:25]} b6 {[%emt 0:12:44]} 16. Rb1 {[%emt 0:06:58]} b5 {[%emt 0:09:21]} 17. axb5 {[%emt 0:15:52]} axb5 {[%emt 0:00:38]} 18. Nxb5 {[%emt 0:00:14]} Ba6 {[%emt 0:00:54]} 19. bxc5 {[%emt 0:00:05]} Qa5 {[%emt 0:01:08]} 20. c6 {[%emt 0:01:37]} Rxb5 {[%emt 0:01:33]} 21. Rxb5 {[%emt 0:00:31]} Bxb5 {[%emt 0:00:20]} 22. Qf4 {[%emt 0:00:28]} Re5 {[%emt 0:14:35]} 23. Bb2 {[%emt 0:24:19]} Nxd5 {[%emt 0:08:33]} 24. Bxd5 {[%emt 0:00:10]} Rxd5 {[%emt 0:00:23]} 25. Ra1 {[%emt 0:00:19]} Qd8 {[%emt 0:05:30]} 26. c7 {[%emt 0:00:55]} Qc8 {[%emt 0:00:46]} 27. Qe4 {[%emt 0:02:04]} Bxb2 {[%emt 0:19:16]} 28. Ra7 {[%emt 0:03:07]} Bc6 {[%emt 0:02:46]} 29. Qc2 {[%emt 0:00:06]} Bd4 {[%emt 0:01:40]} 30. Qxc6 {[%emt 0:03:17]} Bxa7 {[%emt 0:00:17]} 31. Qxd5 {[%emt 0:00:10]} Qxc7 {[%emt 0:00:16]} 32. e3 {[%emt 0:03:57]} Kg7 {[%emt 0:02:47]} 33. Kg2 {[%emt 0:02:40]} Qc5 {[%emt 0:01:25]} 34. Qb3 {[%emt 0:00:28]} d5 {[%emt 0:01:07]} 35. Kf3 {[%emt 0:03:27]} Qc6 {[%emt 0:01:58]} 36. Ke2 {[%emt 0:01:04]} Qc4+ {[%emt 0:04:01]} 37. Qxc4 {[%emt 0:00:29]} dxc4 {[%emt 0:00:02]} 38. Kd2 {[%emt 0:00:07]} Kf6 {[%emt 0:00:10]} 39. Kc3 {[%emt 0:00:28]} Ke5 {[%emt 0:00:08]} 40. Kxc4 {[%emt 0:01:02]} Ke4 {[%emt 0:01:08]} 41. f3+ {[%emt 0:02:35]} Kxf3 {[%emt 0:01:07]} 42. Kd5 {[%emt 0:00:06]} Kxe3 {[%emt 0:00:12]} 43. Kd6 {[%emt 0:00:16]} Bd4 {[%emt 0:00:31]} 44. Ke7 {[%emt 0:00:07]} f5 {[%emt 0:00:07]} 45. Kf7 {[%emt 0:00:03]} g5 {[%emt 0:01:14]} 0-1

[Event "94th FRA-ch Open C 2019"]
[Site "Chartres"]
[Date "2019.08.20"]
[Round "4.6"]
[White "Roche, Philippe"]
[Black "Guliyev, Tofig"]
[Result "0-1"]
[ECO "B83"]
[WhiteElo "1740"]
[BlackElo "1615"]
[Annotator "NA"]
[PlyCount "60"]
[EventDate "2019.08.17"]
[EventType "swiss"]
[EventCountry "FRA"]
[SourceTitle "playchess.com"]
[Source "ChessBase"]
[SourceQuality "1"]
[TimeControl "40/5400+30:1800+30"]

1. e4 {[%emt 0:00:00]} c5 {[%emt 0:00:00]} 2. Nf3 {[%emt 0:00:00]} d6 {[%emt 0:00:09]} 3. d4 {[%emt 0:00:05]} cxd4 {[%emt 0:00:15]} 4. Nxd4 {[%emt 0:00:16]} Nf6 {[%emt 0:00:29]} 5. Nc3 {[%emt 0:00:16]} a6 {[%emt 0:00:25]} 6. Be2 {[%emt 0:00:28]} e6 {[%emt 0:01:41]} 7. O-O {[%emt 0:03:11]} Nc6 {[%emt 0:08:08]} 8. Be3 {[%emt 0:02:46]} Qc7 {[%emt 0:02:04]} 9. f4 {[%emt 0:06:44]} Be7 {[%emt 0:08:23]} 10. Qd2 {[%emt 0:04:09]} O-O {[%emt 0:12:25]} 11. Rad1 {[%emt 0:01:10]} Re8 {[%emt 0:10:09]} 12. Bf3 {[%emt 0:03:23]} Rb8 {[%emt 0:05:29]} 13. g4 {[%emt 0:09:56]} Nxd4 {[%emt 0:08:30]} 14. Bxd4 {[%emt 0:01:46]} e5 {[%emt 0:01:19]} 15. fxe5 {[%emt 0:05:26]} dxe5 {[%emt 0:01:47]} 16. Be3 {[%emt 0:04:22]} Bxg4 {[%emt 0:11:41]} 17. Qg2 {[%emt 0:05:03]} Bxf3 {[%emt 0:01:11]} 18. Rxf3 {[%emt 0:00:44]} Rbd8 {[%emt 0:01:41]} 19. Rdf1 {[%emt 0:01:49]} Bc5 {[%emt 0:04:37]} 20. Bxc5 {[%emt 0:02:39]} Qxc5+ {[%emt 0:00:27]} 21. Kh1 {[%emt 0:00:28]} Kh8 {[%emt 0:01:57]} 22. Qg5 {[%emt 0:11:16]} h6 {[%emt 0:07:06]} 23. Qh4 {[%emt 0:05:52]} Rd6 {[%emt 0:01:13]} 24. Rxf6 {[%emt 0:02:46]} Rxf6 {[%emt 0:00:10]} 25. Rxf6 {[%emt 0:00:37]} gxf6 {[%emt 0:00:03]} 26. Qxh6+ {[%emt 0:00:58]} Kg8 {[%emt 0:00:01]} 27. Qxf6 {[%emt 0:00:37]} Re6 {[%emt 0:00:18]} 28. Qd8+ {[%emt 0:01:50]} Kg7 {[%emt 0:00:14]} 29. Qd5 {[%emt 0:04:36]} Qf2 {[%emt 0:00:44]} 30. Qd3 {[%emt 0:05:04]} Rg6 {[%emt 0:00:34]} 0-1

[Event "94th FRA-ch Open C 2019"]
[Site "Chartres"]
[Date "2019.08.21"]
[Round "5.1"]
[White "Deswarte, Come"]
[Black "Leclerc, Alain"]
[Result "0-1"]
[ECO "B18"]
[WhiteElo "1628"]
[BlackElo "1787"]
[Annotator "NA"]
[PlyCount "48"]
[EventDate "2019.08.17"]
[EventType "swiss"]
[EventCountry "FRA"]
[SourceTitle "playchess.com"]
[Source "ChessBase"]
[SourceQuality "1"]
[TimeControl "40/5400+30:1800+30"]

1. e4 {[%emt 0:00:00]} c6 {[%emt 0:00:25]} 2. d4 {[%emt 0:00:13]} d5 {[%emt 0:00:29]} 3. Nc3 {[%emt 0:00:11]} dxe4 {[%emt 0:00:07]} 4. Nxe4 {[%emt 0:00:19]} Bf5 {[%emt 0:00:16]} 5. Ng3 {[%emt 0:00:07]} Bg6 {[%emt 0:00:06]} 6. h4 {[%emt 0:00:04]} h6 {[%emt 0:00:06]} 7. Nh3 {[%emt 0:00:04]} Nd7 {[%emt 0:02:21]} 8. Nf4 {[%emt 0:00:12]} Bh7 {[%emt 0:00:19]} 9. Bc4 {[%emt 0:04:28]} e6 {[%emt 0:06:41]} 10. Qe2 {[%emt 0:11:58]} Qe7 {[%emt 0:01:44]} 11. O-O {[%emt 0:14:16]} O-O-O {[%emt 0:23:18]} 12. h5 {[%emt 0:05:58]} Qh4 {[%emt 0:06:11]} 13. b4 {[%emt 0:05:52]} Bd6 {[%emt 0:01:24]} 14. Qf3 {[%emt 0:01:09]} Nb6 {[%emt 0:04:53]} 15. Be2 {[%emt 0:08:21]} Bxc2 {[%emt 0:09:41]} 16. b5 {[%emt 0:03:14]} Ne7 {[%emt 0:01:02]} 17. bxc6 {[%emt 0:03:27]} Nxc6 {[%emt 0:00:20]} 18. Be3 {[%emt 0:00:23]} e5 {[%emt 0:07:55]} 19. Nd5 {[%emt 0:15:52]} Nxd5 {[%emt 0:04:46]} 20. Qxd5 {[%emt 0:23:52]} exd4 {[%emt 0:00:07]} 21. Rac1 {[%emt 0:00:00]} dxe3 {[%emt 0:11:16]} 22. Rxc2 {[%emt 0:00:00]} exf2+ {[%emt 0:00:12]} 23. Rxf2 {[%emt 0:00:00]} Bxg3 {[%emt 0:00:20]} 24. Rxc6+ {[%emt 0:00:00]} Kb8 {[%emt 0:00:06]} 0-1

[Event "94th FRA-ch Open C 2019"]
[Site "Chartres"]
[Date "2019.08.21"]
[Round "5.2"]
[White "Noyer, Bastien"]
[Black "Brun, Pierre"]
[Result "0-1"]
[ECO "C00"]
[WhiteElo "1618"]
[BlackElo "1648"]
[Annotator "NA"]
[PlyCount "104"]
[EventDate "2019.08.17"]
[EventType "swiss"]
[EventCountry "FRA"]
[SourceTitle "playchess.com"]
[Source "ChessBase"]
[SourceQuality "1"]
[TimeControl "40/5400+30:1800+30"]

1. e4 {[%emt 0:00:00]} e6 {[%emt 0:00:00]} 2. b3 {[%emt 0:00:00]} d5 {[%emt 0:00:00]} 3. Bb2 {[%emt 0:00:00]} Nf6 {[%emt 0:00:00]} 4. exd5 {[%emt 0:01:36]} exd5 {[%emt 0:00:05]} 5. Nf3 {[%emt 0:03:00]} Bd6 {[%emt 0:01:52]} 6. Nc3 {[%emt 0:07:52]} O-O {[%emt 0:00:42]} 7. Be2 {[%emt 0:01:33]} c6 {[%emt 0:03:10]} 8. d4 {[%emt 0:02:41]} Re8 {[%emt 0:02:56]} 9. Qd2 {[%emt 0:04:10]} Qc7 {[%emt 0:04:53]} 10. g3 {[%emt 0:12:43]} Bg4 {[%emt 0:04:01]} 11. O-O-O {[%emt 0:01:28]} Nbd7 {[%emt 0:01:27]} 12. Nh4 {[%emt 0:07:49]} Bxe2 {[%emt 0:01:10]} 13. Nxe2 {[%emt 0:00:21]} a5 {[%emt 0:00:26]} 14. f3 {[%emt 0:14:17]} a4 {[%emt 0:00:41]} 15. Nf5 {[%emt 0:01:23]} Bf8 {[%emt 0:01:11]} 16. Kb1 {[%emt 0:02:58]} axb3 {[%emt 0:02:26]} 17. cxb3 {[%emt 0:00:38]} b5 {[%emt 0:04:27]} 18. h4 {[%emt 0:01:09]} Qa5 {[%emt 0:04:53]} 19. Nc3 {[%emt 0:12:40]} Nb6 {[%emt 0:02:30]} 20. Qg5 {[%emt 0:12:12]} Ra7 {[%emt 0:06:12]} 21. a3 {[%emt 0:09:57]} Kh8 {[%emt 0:08:13]} 22. h5 {[%emt 0:00:46]} Ng8 {[%emt 0:00:46]} 23. Rde1 {[%emt 0:01:07]} Rxe1+ {[%emt 0:01:35]} 24. Rxe1 {[%emt 0:00:01]} h6 {[%emt 0:00:43]} 25. Qg4 {[%emt 0:00:33]} Nf6 {[%emt 0:00:20]} 26. b4 {[%emt 0:01:23]} Qa6 {[%emt 0:00:34]} 27. Qh4 {[%emt 0:00:11]} Nc4 {[%emt 0:04:19]} 28. Nxh6 {[%emt 0:00:10]} Nxb2 {[%emt 0:00:10]} 29. Nxf7+ {[%emt 0:00:12]} Rxf7 {[%emt 0:00:33]} 30. h6 {[%emt 0:00:42]} g6 {[%emt 0:00:47]} 31. Kxb2 {[%emt 0:00:12]} Qc8 {[%emt 0:00:42]} 32. Qg5 {[%emt 0:00:50]} Kh7 {[%emt 0:00:55]} 33. g4 {[%emt 0:01:24]} Qd7 {[%emt 0:01:53]} 34. Qh4 {[%emt 0:00:25]} Qd6 {[%emt 0:01:51]} 35. g5 {[%emt 0:00:14]} Nh5 {[%emt 0:00:38]} 36. Re5 {[%emt 0:00:47]} Rxf3 {[%emt 0:02:24]} 37. Qe1 {[%emt 0:00:32]} Rf7 {[%emt 0:00:30]} 38. Re6 {[%emt 0:00:26]} Qd7 {[%emt 0:00:10]} 39. Re2 {[%emt 0:00:10]} Re7 {[%emt 0:00:44]} 40. Qf2 {[%emt 0:00:40]} Rxe2+ {[%emt 0:00:32]} 41. Nxe2 {[%emt 0:30:01]} Qf5 {[%emt 0:31:26]} 42. Qe3 {[%emt 0:01:10]} Qe4 {[%emt 0:00:32]} 43. Qf2 {[%emt 0:00:22]} Qe8 {[%emt 0:00:52]} 44. Ng1 {[%emt 0:00:00]} Bd6 {[%emt 0:00:00]} 45. Ne2 {[%emt 0:00:00]} Qf8 {[%emt 0:00:00]} 46. Qe3 {[%emt 0:00:00]} Qf7 {[%emt 0:00:00]} 47. Qc3 {[%emt 0:00:00]} Qf2 {[%emt 0:00:00]} 48. Qxc6 {[%emt 0:00:00]} Qxe2+ {[%emt 0:00:00]} 49. Kb1 {[%emt 0:00:00]} Qd3+ {[%emt 0:00:00]} 50. Kb2 {[%emt 0:00:00]} Qxd4+ {[%emt 0:00:00]} 51. Kb1 {[%emt 0:00:00]} Qd3+ {[%emt 0:00:00]} 52. Kb2 {[%emt 0:00:00]} Be5+ {[%emt 0:00:00]} 0-1

[Event "94th FRA-ch Open C 2019"]
[Site "Chartres"]
[Date "2019.08.21"]
[Round "5.3"]
[White "Guliyev, Tofig"]
[Black "Sithisak, Remi"]
[Result "1/2-1/2"]
[ECO "E81"]
[WhiteElo "1615"]
[BlackElo "1635"]
[Annotator "NA"]
[PlyCount "103"]
[EventDate "2019.08.17"]
[EventType "swiss"]
[EventCountry "FRA"]
[SourceTitle "playchess.com"]
[Source "ChessBase"]
[SourceQuality "1"]
[TimeControl "40/5400+30:1800+30"]

1. d4 {[%emt 0:00:00]} Nf6 {[%emt 0:00:00]} 2. c4 {[%emt 0:00:04]} g6 {[%emt 0:00:21]} 3. Nc3 {[%emt 0:00:09]} Bg7 {[%emt 0:00:22]} 4. e4 {[%emt 0:00:20]} d6 {[%emt 0:00:26]} 5. f3 {[%emt 0:00:20]} O-O {[%emt 0:00:27]} 6. Be3 {[%emt 0:00:17]} c5 {[%emt 0:00:59]} 7. d5 {[%emt 0:08:40]} e6 {[%emt 0:01:02]} 8. Nge2 {[%emt 0:00:44]} a6 {[%emt 0:01:32]} 9. Qd2 {[%emt 0:02:47]} exd5 {[%emt 0:01:03]} 10. Nxd5 {[%emt 0:11:53]} Nxd5 {[%emt 0:02:03]} 11. cxd5 {[%emt 0:01:43]} b5 {[%emt 0:01:00]} 12. O-O-O {[%emt 0:08:40]} Re8 {[%emt 0:10:31]} 13. g4 {[%emt 0:06:42]} a5 {[%emt 0:04:55]} 14. Ng3 {[%emt 0:00:39]} b4 {[%emt 0:01:26]} 15. h4 {[%emt 0:05:21]} a4 {[%emt 0:01:38]} 16. g5 {[%emt 0:04:53]} Na6 {[%emt 0:08:47]} 17. h5 {[%emt 0:03:22]} b3 {[%emt 0:03:06]} 18. a3 {[%emt 0:09:24]} Nb4 {[%emt 0:01:52]} 19. Bc4 {[%emt 0:09:35]} Nc2 {[%emt 0:02:28]} 20. hxg6 {[%emt 0:01:29]} hxg6 {[%emt 0:02:30]} 21. Rh4 {[%emt 0:01:06]} Ba6 {[%emt 0:02:16]} 22. Bxa6 {[%emt 0:01:31]} Rxa6 {[%emt 0:00:36]} 23. Rdh1 {[%emt 0:00:25]} Nxe3 {[%emt 0:21:34]} 24. Qxe3 {[%emt 0:02:16]} Qa5 {[%emt 0:02:16]} 25. f4 {[%emt 0:06:12]} Qb5 {[%emt 0:02:45]} 26. R1h2 {[%emt 0:04:17]} Qc4+ {[%emt 0:01:47]} 27. Kb1 {[%emt 0:01:34]} Qd4 {[%emt 0:00:50]} 28. Qxd4 {[%emt 0:06:02]} cxd4 {[%emt 0:00:30]} 29. f5 {[%emt 0:01:22]} gxf5 {[%emt 0:00:29]} 30. Nxf5 {[%emt 0:00:03]} Be5 {[%emt 0:02:02]} 31. Rg2 {[%emt 0:02:10]} Ra5 {[%emt 0:06:25]} 32. Rd2 {[%emt 0:01:20]} Rc5 {[%emt 0:00:59]} 33. Nxd4 {[%emt 0:00:20]} Bxd4 {[%emt 0:02:04]} 34. Rxd4 {[%emt 0:00:02]} Rec8 {[%emt 0:00:58]} 35. Rh1 {[%emt 0:00:09]} Rc4 {[%emt 0:02:36]} 36. Rxc4 {[%emt 0:00:41]} Rxc4 {[%emt 0:00:02]} 37. Re1 {[%emt 0:00:23]} Kg7 {[%emt 0:01:11]} 38. e5 {[%emt 0:00:39]} dxe5 {[%emt 0:00:08]} 39. Rxe5 {[%emt 0:00:11]} Kg6 {[%emt 0:00:30]} 40. d6 {[%emt 0:00:35]} Rd4 {[%emt 0:00:45]} 41. Kc1 {[%emt 0:03:19]} Rxd6 {[%emt 0:01:25]} 42. Ra5 {[%emt 0:12:47]} Rd4 {[%emt 0:00:41]} 43. Rc5 {[%emt 0:00:59]} Rg4 {[%emt 0:21:45]} 44. Ra5 {[%emt 0:01:52]} Rxg5 {[%emt 0:04:38]} 45. Rxa4 {[%emt 0:00:14]} Rc5+ {[%emt 0:04:50]} 46. Kd2 {[%emt 0:03:03]} Rc2+ {[%emt 0:00:52]} 47. Kd3 {[%emt 0:00:14]} Rxb2 {[%emt 0:00:21]} 48. Kc3 {[%emt 0:00:05]} Rh2 {[%emt 0:06:01]} 49. Kxb3 {[%emt 0:00:28]} Rh3+ {[%emt 0:00:09]} 50. Kb4 {[%emt 0:03:13]} f5 {[%emt 0:01:31]} 51. Ra8 {[%emt 0:00:28]} f4 {[%emt 0:04:16]} 52. Rf8 {[%emt 0:10:58]} 1/2-1/2